[Event "Titled Tuesday Blitz December 13 Early 2022"]
[White "Winterberg, Lukas"]
[Black "Ansh M Shah"]
[WhiteFideId "24622702"]
[BlackFideId "25033379"]
[WhiteElo "2350"]
[BlackElo "2084"]
[Result "0-1"]
[Round "08"]
[TimeControl "180+1"]
[Date "2022.12.14"]
[WhiteClock "0:00:13"]
[BlackClock "0:00:04"]

1. d4 {[%clk 0:03:00]}  Nf6 {[%clk 0:02:58]} 2. Nf3 {[%clk 0:02:55]}  e6 {[%clk 0:02:59]} 3. c4 {[%clk 0:02:56]}  d5 {[%clk 0:02:58]} 4. Nc3 {[%clk 0:02:56]}  Be7 {[%clk 0:02:57]} 5. Bg5 {[%clk 0:02:56]}  O-O {[%clk 0:02:57]} 6. e3 {[%clk 0:02:57]}  c6 {[%clk 0:02:56]} 7. Be2 {[%clk 0:02:56]}  Nbd7 {[%clk 0:02:54]} 8. O-O {[%clk 0:02:57]}  dxc4 {[%clk 0:02:54]} 9. Bxc4 {[%clk 0:02:57]}  b5 {[%clk 0:02:55]} 10. Bd3 {[%clk 0:02:57]}  Bb7 {[%clk 0:02:56]} 11. e4 {[%clk 0:02:57]}  a6 {[%clk 0:02:56]} 12. e5 {[%clk 0:02:56]}  Nd5 {[%clk 0:02:53]} 13. Bxe7 {[%clk 0:02:57]}  Nxe7 {[%clk 0:02:52]} 14. Nd5 {[%clk 0:02:58]}  Nxd5 {[%clk 0:02:52]} 15. h4 {[%clk 0:02:54]}  f5 {[%clk 0:02:22]} 16. exf6 {[%clk 0:02:46]}  N5xf6 {[%clk 0:02:23]} 17. Re1 {[%clk 0:02:42]}  c5 {[%clk 0:02:11]} 18. Ng5 {[%clk 0:02:42]}  c4 {[%clk 0:01:23]} 19. Nxe6 {[%clk 0:02:37]}  Qb6 {[%clk 0:01:23]} 20. Nxf8 {[%clk 0:02:31]}  Rxf8 {[%clk 0:01:10]} 21. Bf5 {[%clk 0:02:31]}  Nb8 {[%clk 0:00:56]} 22. Be6+ {[%clk 0:02:22]}  Kh8 {[%clk 0:00:54]} 23. d5 {[%clk 0:02:22]}  Nxd5 {[%clk 0:00:43]} 24. Bxd5 {[%clk 0:02:10]}  Qxf2+ {[%clk 0:00:43]} 25. Kh2 {[%clk 0:02:10]}  Qxh4+ {[%clk 0:00:43]} 26. Kg1 {[%clk 0:02:11]}  Qf2+ {[%clk 0:00:40]} 27. Kh2 {[%clk 0:02:11]}  Qf4+ {[%clk 0:00:23]} 28. g3 {[%clk 0:01:33]}  Qf2+ {[%clk 0:00:23]} 29. Kh1 {[%clk 0:01:33]}  Bxd5+ {[%clk 0:00:13]} 30. Qxd5 {[%clk 0:01:34]}  Qxg3 {[%clk 0:00:13]} 31. Qg2 {[%clk 0:01:26]}  Qh4+ {[%clk 0:00:13]} 32. Qh2 {[%clk 0:01:25]}  Qd4 {[%clk 0:00:13]} 33. Rad1 {[%clk 0:01:22]}  Qb6 {[%clk 0:00:12]} 34. Qd6 {[%clk 0:01:13]}  Qb7+ {[%clk 0:00:11]} 35. Kg1 {[%clk 0:01:11]}  Rg8 {[%clk 0:00:11]} 36. Re7 {[%clk 0:01:04]}  Qf3 {[%clk 0:00:09]} 37. Rde1 {[%clk 0:01:02]}  Nc6 {[%clk 0:00:08]} 38. Re8 {[%clk 0:00:58]}  Qg4+ {[%clk 0:00:08]} 39. Kf2 {[%clk 0:00:56]}  Qh4+ {[%clk 0:00:05]} 40. Qg3 {[%clk 0:00:51]}  Qd4+ {[%clk 0:00:04]} 41. Kg2 {[%clk 0:00:49]}  Qxb2+ {[%clk 0:00:04]} 42. R1e2 {[%clk 0:00:43]}  Qf6 {[%clk 0:00:03]} 43. Rxg8+ {[%clk 0:00:38]}  Kxg8 {[%clk 0:00:04]} 44. Rf2 {[%clk 0:00:34]}  Qe6 {[%clk 0:00:04]} 45. Qc7 {[%clk 0:00:32]}  Qd5+ {[%clk 0:00:04]} 46. Kg1 {[%clk 0:00:30]}  h6 {[%clk 0:00:04]} 47. Qc8+ {[%clk 0:00:20]}  Kh7 {[%clk 0:00:04]} 48. Qxa6 {[%clk 0:00:21]}  Qd1+ {[%clk 0:00:03]} 49. Kh2 {[%clk 0:00:21]}  Qh5+ {[%clk 0:00:03]} 50. Kg2 {[%clk 0:00:21]}  Qg6+ {[%clk 0:00:04]} 51. Kh1 {[%clk 0:00:20]}  Qe4+ {[%clk 0:00:04]} 52. Rg2 {[%clk 0:00:20]}  Nd4 {[%clk 0:00:04]} 53. Qd6 {[%clk 0:00:15]}  Qe1+ {[%clk 0:00:03]} 54. Kh2 {[%clk 0:00:15]}  Qh4+ {[%clk 0:00:04]} 55. Kg1 {[%clk 0:00:15]}  Nf3+ {[%clk 0:00:04]} 56. Kf1 {[%clk 0:00:13]}  Qe1# {[%clk 0:00:04]} 0-1


[Site "https://www.chess.com"]

[Event "Titled Tuesday Blitz December 13 Early 2022"]
[White "Xu, Yi"]
[Black "Csonka, Balazs"]
[WhiteFideId "8605564"]
[BlackFideId "742910"]
[WhiteElo "2471"]
[BlackElo "2404"]
[Result "1-0"]
[Round "08"]
[TimeControl "180+1"]
[Date "2022.12.13"]
[WhiteClock "0:00:08"]
[BlackClock "0:00:01"]

1. e4 {[%clk 0:03:00]}  e6 {[%clk 0:02:58]} 2. d4 {[%clk 0:02:59]}  d5 {[%clk 0:02:58]} 3. e5 {[%clk 0:02:56]}  c5 {[%clk 0:02:52]} 4. c3 {[%clk 0:02:56]}  Nc6 {[%clk 0:02:41]} 5. Nf3 {[%clk 0:02:54]}  Bd7 {[%clk 0:02:36]} 6. Be2 {[%clk 0:02:50]}  Nge7 {[%clk 0:02:32]} 7. Na3 {[%clk 0:02:26]}  cxd4 {[%clk 0:02:25]} 8. cxd4 {[%clk 0:02:26]}  Nf5 {[%clk 0:02:25]} 9. Nc2 {[%clk 0:02:27]}  Qb6 {[%clk 0:02:26]} 10. O-O {[%clk 0:02:24]}  Rc8 {[%clk 0:02:16]} 11. g4 {[%clk 0:02:17]}  Nfe7 {[%clk 0:02:13]} 12. Rb1 {[%clk 0:02:01]}  Nb4 {[%clk 0:01:51]} 13. Nxb4 {[%clk 0:01:57]}  Qxb4 {[%clk 0:01:52]} 14. a3 {[%clk 0:01:51]}  Qb6 {[%clk 0:01:50]} 15. Be3 {[%clk 0:01:47]}  Bb5 {[%clk 0:01:41]} 16. Rc1 {[%clk 0:01:34]}  Nc6 {[%clk 0:01:36]} 17. b4 {[%clk 0:01:30]}  a6 {[%clk 0:01:09]} 18. Bxb5 {[%clk 0:01:15]}  Qxb5 {[%clk 0:00:54]} 19. Ne1 {[%clk 0:01:10]}  Be7 {[%clk 0:00:51]} 20. f4 {[%clk 0:01:09]}  O-O {[%clk 0:00:46]} 21. f5 {[%clk 0:01:09]}  f6 {[%clk 0:00:45]} 22. exf6 {[%clk 0:00:52]}  Rxf6 {[%clk 0:00:37]} 23. Bg5 {[%clk 0:00:46]}  Rf7 {[%clk 0:00:35]} 24. Bxe7 {[%clk 0:00:45]}  Nxe7 {[%clk 0:00:31]} 25. Rxc8+ {[%clk 0:00:44]}  Nxc8 {[%clk 0:00:32]} 26. Nd3 {[%clk 0:00:30]}  exf5 {[%clk 0:00:28]} 27. Ne5 {[%clk 0:00:30]}  Rf6 {[%clk 0:00:24]} 28. Rxf5 {[%clk 0:00:27]}  Rxf5 {[%clk 0:00:23]} 29. gxf5 {[%clk 0:00:28]}  Qb6 {[%clk 0:00:10]} 30. Qg4 {[%clk 0:00:23]}  Ne7 {[%clk 0:00:05]} 31. Kg2 {[%clk 0:00:21]}  Qf6 {[%clk 0:00:04]} 32. Qh5 {[%clk 0:00:17]}  g6 {[%clk 0:00:02]} 33. fxg6 {[%clk 0:00:16]}  hxg6 {[%clk 0:00:02]} 34. Qg4 {[%clk 0:00:16]}  Kg7 {[%clk 0:00:01]} 35. Qd7 {[%clk 0:00:15]}  Qg5+ {[%clk 0:00:01]} 36. Kf3 {[%clk 0:00:15]}  Qf6+ {[%clk 0:00:02]} 37. Ke2 {[%clk 0:00:14]}  Kf8 {[%clk 0:00:02]} 38. Qxb7 {[%clk 0:00:13]}  Qh4 {[%clk 0:00:02]} 39. Qxa6 {[%clk 0:00:10]}  Qxh2+ {[%clk 0:00:01]} 40. Kd3 {[%clk 0:00:11]}  Qg3+ {[%clk 0:00:02]} 41. Kc2 {[%clk 0:00:10]}  Qf2+ {[%clk 0:00:02]} 42. Kb3 {[%clk 0:00:09]}  Qxd4 {[%clk 0:00:01]} 43. Qf6+ {[%clk 0:00:09]}  Kg8 {[%clk 0:00:01]} 44. Qxe7 {[%clk 0:00:07]}  Qe3+ {[%clk 0:00:01]} 45. Ka4 {[%clk 0:00:08]} 1-0


[Site "https://www.chess.com"]

[Event "Titled Tuesday Blitz December 13 Early 2022"]
[White "Yeremyan, Alen"]
[Black "Torres Cueto, Jesus Marcial"]
[WhiteFideId "13308998"]
[BlackFideId "4415280"]
[WhiteElo "2159"]
[BlackElo "2022"]
[Result "1-0"]
[Round "08"]
[TimeControl "180+1"]
[Date "2022.12.14"]
[WhiteClock "0:02:09"]
[BlackClock "0:00:17"]

1. c4 {[%clk 0:02:59]}  Nf6 {[%clk 0:02:59]} 2. Nc3 {[%clk 0:02:59]}  e5 {[%clk 0:02:59]} 3. e4 {[%clk 0:02:59]}  Be7 {[%clk 0:02:58]} 4. g3 {[%clk 0:02:59]}  O-O {[%clk 0:02:51]} 5. Bg2 {[%clk 0:03:00]}  Nc6 {[%clk 0:02:51]} 6. Nge2 {[%clk 0:03:00]}  Nd4 {[%clk 0:02:50]} 7. O-O {[%clk 0:03:01]}  c6 {[%clk 0:02:38]} 8. Nxd4 {[%clk 0:03:01]}  exd4 {[%clk 0:02:33]} 9. Ne2 {[%clk 0:03:01]}  Bc5 {[%clk 0:02:32]} 10. d3 {[%clk 0:03:01]}  d5 {[%clk 0:02:30]} 11. cxd5 {[%clk 0:03:01]}  cxd5 {[%clk 0:02:31]} 12. e5 {[%clk 0:03:02]}  Ng4 {[%clk 0:02:29]} 13. f4 {[%clk 0:03:01]}  h5 {[%clk 0:02:22]} 14. h3 {[%clk 0:03:01]}  Nh6 {[%clk 0:02:18]} 15. Kh2 {[%clk 0:02:59]}  h4 {[%clk 0:02:17]} 16. g4 {[%clk 0:02:58]}  Bxg4 {[%clk 0:02:13]} 17. hxg4 {[%clk 0:02:59]}  Nxg4+ {[%clk 0:02:13]} 18. Kh1 {[%clk 0:03:00]}  h3 {[%clk 0:02:12]} 19. Bf3 {[%clk 0:02:59]}  Qh4 {[%clk 0:02:07]} 20. Bxg4 {[%clk 0:02:57]}  Qxg4 {[%clk 0:02:08]} 21. Rf2 {[%clk 0:02:55]}  f6 {[%clk 0:02:03]} 22. Bd2 {[%clk 0:02:50]}  fxe5 {[%clk 0:02:01]} 23. Qg1 {[%clk 0:02:49]}  Qxg1+ {[%clk 0:01:51]} 24. Rxg1 {[%clk 0:02:49]}  e4 {[%clk 0:01:52]} 25. Rh2 {[%clk 0:02:45]}  e3 {[%clk 0:01:44]} 26. Bc1 {[%clk 0:02:43]}  Bd6 {[%clk 0:01:43]} 27. Rxh3 {[%clk 0:02:40]}  Bxf4 {[%clk 0:01:42]} 28. Nxd4 {[%clk 0:02:40]}  Rae8 {[%clk 0:01:38]} 29. Ne2 {[%clk 0:02:39]}  d4 {[%clk 0:01:18]} 30. Rh4 {[%clk 0:02:28]}  Be5 {[%clk 0:01:10]} 31. Nxd4 {[%clk 0:02:24]}  Bxd4 {[%clk 0:00:43]} 32. Rxd4 {[%clk 0:02:25]}  e2 {[%clk 0:00:44]} 33. Re4 {[%clk 0:02:25]}  Rxe4 {[%clk 0:00:42]} 34. dxe4 {[%clk 0:02:26]}  Rf1 {[%clk 0:00:42]} 35. Bd2 {[%clk 0:02:27]}  Rd1 {[%clk 0:00:42]} 36. Be1 {[%clk 0:02:27]}  Kf7 {[%clk 0:00:41]} 37. Kg2 {[%clk 0:02:27]}  Rb1 {[%clk 0:00:41]} 38. b3 {[%clk 0:02:27]}  Rb2 {[%clk 0:00:39]} 39. Kf2 {[%clk 0:02:23]}  Rxa2 {[%clk 0:00:39]} 40. Rg3 {[%clk 0:02:23]}  Rb2 {[%clk 0:00:39]} 41. Re3 {[%clk 0:02:24]}  Ke6 {[%clk 0:00:38]} 42. b4 {[%clk 0:02:24]}  a6 {[%clk 0:00:31]} 43. Rxe2 {[%clk 0:02:21]}  Rb3 {[%clk 0:00:31]} 44. Re3 {[%clk 0:02:21]}  Rb2+ {[%clk 0:00:31]} 45. Kf3 {[%clk 0:02:19]}  b6 {[%clk 0:00:31]} 46. Bc3 {[%clk 0:02:19]}  Rb1 {[%clk 0:00:27]} 47. Rd3 {[%clk 0:02:19]}  g6 {[%clk 0:00:22]} 48. e5 {[%clk 0:02:18]}  a5 {[%clk 0:00:18]} 49. bxa5 {[%clk 0:02:15]}  bxa5 {[%clk 0:00:19]} 50. Rd6+ {[%clk 0:02:15]}  Kf5 {[%clk 0:00:18]} 51. Rf6+ {[%clk 0:02:15]}  Kg5 {[%clk 0:00:18]} 52. Bd2+ {[%clk 0:02:10]}  Kh5 {[%clk 0:00:18]} 53. Bxa5 {[%clk 0:02:11]}  Rf1+ {[%clk 0:00:16]} 54. Ke4 {[%clk 0:02:10]}  Re1+ {[%clk 0:00:17]} 55. Bxe1 {[%clk 0:02:09]} 1-0


[Site "https://www.chess.com"]

[Event "Titled Tuesday Blitz December 13 Early 2022"]
[White "Yilmaz, Mustafa"]
[Black "Fedoseev, Vladimir"]
[WhiteFideId "6302718"]
[BlackFideId "24130737"]
[WhiteElo "2564"]
[BlackElo "2733"]
[Result "1-0"]
[Round "08"]
[TimeControl "180+1"]
[Date "2022.12.13"]
[WhiteClock "0:00:09"]
[BlackClock "0:00:02"]

1. d4 {[%clk 0:03:00]}  Nf6 {[%clk 0:02:57]} 2. c4 {[%clk 0:03:01]}  g6 {[%clk 0:02:58]} 3. Nc3 {[%clk 0:03:01]}  Bg7 {[%clk 0:02:58]} 4. e4 {[%clk 0:03:01]}  d6 {[%clk 0:02:59]} 5. Be2 {[%clk 0:03:01]}  O-O {[%clk 0:02:59]} 6. Nf3 {[%clk 0:03:01]}  e5 {[%clk 0:03:00]} 7. O-O {[%clk 0:03:02]}  h6 {[%clk 0:02:59]} 8. Re1 {[%clk 0:03:01]}  Nbd7 {[%clk 0:02:56]} 9. Qc2 {[%clk 0:03:01]}  Re8 {[%clk 0:02:54]} 10. dxe5 {[%clk 0:03:01]}  dxe5 {[%clk 0:02:54]} 11. Be3 {[%clk 0:03:01]}  Ng4 {[%clk 0:02:53]} 12. Bd2 {[%clk 0:03:00]}  Nc5 {[%clk 0:02:53]} 13. Rad1 {[%clk 0:02:57]}  Bd7 {[%clk 0:02:31]} 14. h3 {[%clk 0:02:30]}  Nf6 {[%clk 0:02:30]} 15. Be3 {[%clk 0:02:31]}  Na6 {[%clk 0:02:28]} 16. c5 {[%clk 0:02:29]}  Qc8 {[%clk 0:02:19]} 17. a3 {[%clk 0:02:26]}  Nb8 {[%clk 0:02:11]} 18. b4 {[%clk 0:02:25]}  Kh7 {[%clk 0:02:10]} 19. Bc4 {[%clk 0:02:22]}  Re7 {[%clk 0:02:00]} 20. Qb3 {[%clk 0:02:18]}  Qe8 {[%clk 0:01:58]} 21. b5 {[%clk 0:02:06]}  c6 {[%clk 0:01:56]} 22. a4 {[%clk 0:02:05]}  Be6 {[%clk 0:01:30]} 23. Nxe5 {[%clk 0:02:02]}  Nbd7 {[%clk 0:01:30]} 24. Nxd7 {[%clk 0:01:42]}  Nxd7 {[%clk 0:01:31]} 25. Nd5 {[%clk 0:01:09]}  cxd5 {[%clk 0:01:14]} 26. exd5 {[%clk 0:01:10]}  Bf5 {[%clk 0:01:13]} 27. d6 {[%clk 0:01:10]}  Nxc5 {[%clk 0:01:12]} 28. Qb4 {[%clk 0:01:10]}  Re5 {[%clk 0:01:12]} 29. Bxc5 {[%clk 0:01:09]}  Qd7 {[%clk 0:00:53]} 30. Rxe5 {[%clk 0:01:03]}  Bxe5 {[%clk 0:00:53]} 31. Re1 {[%clk 0:01:03]}  Re8 {[%clk 0:00:51]} 32. Qd2 {[%clk 0:00:42]}  Bf4 {[%clk 0:00:15]} 33. Rxe8 {[%clk 0:00:24]}  Bxd2 {[%clk 0:00:15]} 34. Re7 {[%clk 0:00:24]}  b6 {[%clk 0:00:16]} 35. Bd4 {[%clk 0:00:19]}  Bb4 {[%clk 0:00:06]} 36. Rxd7 {[%clk 0:00:11]}  Bxd7 {[%clk 0:00:06]} 37. Bxf7 {[%clk 0:00:11]}  Bxd6 {[%clk 0:00:05]} 38. g4 {[%clk 0:00:09]}  h5 {[%clk 0:00:04]} 39. f3 {[%clk 0:00:09]}  hxg4 {[%clk 0:00:02]} 40. hxg4 {[%clk 0:00:10]}  Bc8 {[%clk 0:00:01]} 41. Bd5 {[%clk 0:00:09]}  Bd7 {[%clk 0:00:02]} 42. Kf2 {[%clk 0:00:10]}  Kh6 {[%clk 0:00:01]} 43. Ke3 {[%clk 0:00:10]}  Kg5 {[%clk 0:00:02]} 44. Ke4 {[%clk 0:00:10]}  Kh4 {[%clk 0:00:02]} 45. Bf6+ {[%clk 0:00:08]}  Kh3 {[%clk 0:00:01]} 46. Be5 {[%clk 0:00:09]}  Be7 {[%clk 0:00:01]} 47. Bb8 {[%clk 0:00:09]}  Bc5 {[%clk 0:00:02]} 48. Bxa7 {[%clk 0:00:09]} 1-0


[Site "https://www.chess.com"]

[Event "Titled Tuesday Blitz December 13 Early 2022"]
[White "Albertini, Luca"]
[Black "Yurasova, Daria"]
[WhiteFideId "847038"]
[BlackFideId "34146919"]
[WhiteElo "2207"]
[BlackElo "2098"]
[Result "0-1"]
[Round "09"]
[TimeControl "180+1"]
[Date "2022.12.14"]
[WhiteClock "0:00:04"]
[BlackClock "0:00:13"]

1. e4 {[%clk 0:03:00]}  e5 {[%clk 0:03:00]} 2. Nf3 {[%clk 0:02:56]}  Nc6 {[%clk 0:02:53]} 3. Bc4 {[%clk 0:02:55]}  Bc5 {[%clk 0:02:38]} 4. b4 {[%clk 0:02:55]}  Bxb4 {[%clk 0:02:37]} 5. c3 {[%clk 0:02:55]}  Be7 {[%clk 0:02:36]} 6. d4 {[%clk 0:02:50]}  Na5 {[%clk 0:02:35]} 7. Bd3 {[%clk 0:02:48]}  d6 {[%clk 0:02:34]} 8. h3 {[%clk 0:02:45]}  Nf6 {[%clk 0:02:33]} 9. Qa4+ {[%clk 0:02:40]}  c6 {[%clk 0:02:32]} 10. O-O {[%clk 0:02:37]}  O-O {[%clk 0:02:30]} 11. Rd1 {[%clk 0:02:29]}  b5 {[%clk 0:02:29]} 12. Qc2 {[%clk 0:02:28]}  Qc7 {[%clk 0:02:29]} 13. a4 {[%clk 0:02:23]}  Bd7 {[%clk 0:02:23]} 14. Ba3 {[%clk 0:02:12]}  Rfe8 {[%clk 0:02:19]} 15. Nbd2 {[%clk 0:01:55]}  a6 {[%clk 0:02:17]} 16. Nf1 {[%clk 0:01:54]}  Nb7 {[%clk 0:02:17]} 17. Ne3 {[%clk 0:01:50]}  Bf8 {[%clk 0:02:17]} 18. Qa2 {[%clk 0:01:42]}  Be6 {[%clk 0:02:16]} 19. Qe2 {[%clk 0:01:36]}  Na5 {[%clk 0:02:05]} 20. Ng5 {[%clk 0:01:36]}  Bc4 {[%clk 0:01:59]} 21. Nxc4 {[%clk 0:00:54]}  Nxc4 {[%clk 0:01:57]} 22. Bxc4 {[%clk 0:00:54]}  bxc4 {[%clk 0:01:58]} 23. Qxc4 {[%clk 0:00:54]}  h6 {[%clk 0:01:56]} 24. dxe5 {[%clk 0:00:44]}  Rxe5 {[%clk 0:01:51]} 25. f4 {[%clk 0:00:30]}  Ree8 {[%clk 0:01:44]} 26. e5 {[%clk 0:00:20]}  dxe5 {[%clk 0:01:43]} 27. Bxf8 {[%clk 0:00:20]}  Rxf8 {[%clk 0:01:43]} 28. fxe5 {[%clk 0:00:17]}  Qxe5 {[%clk 0:01:43]} 29. Nf3 {[%clk 0:00:17]}  Qe3+ {[%clk 0:01:43]} 30. Kh1 {[%clk 0:00:16]}  Ne4 {[%clk 0:01:41]} 31. Re1 {[%clk 0:00:13]}  Nf2+ {[%clk 0:01:40]} 32. Kh2 {[%clk 0:00:13]}  Qb6 {[%clk 0:01:38]} 33. Rab1 {[%clk 0:00:12]}  Qc7+ {[%clk 0:01:31]} 34. Kg1 {[%clk 0:00:13]}  Qg3 {[%clk 0:01:31]} 35. Qh4 {[%clk 0:00:10]}  Qxh4 {[%clk 0:01:22]} 36. Nxh4 {[%clk 0:00:11]}  Nd3 {[%clk 0:01:22]} 37. Re7 {[%clk 0:00:11]}  Rab8 {[%clk 0:01:19]} 38. Rbb7 {[%clk 0:00:11]}  Rxb7 {[%clk 0:01:19]} 39. Rxb7 {[%clk 0:00:12]}  Nc5 {[%clk 0:01:17]} 40. Rb6 {[%clk 0:00:10]}  Ra8 {[%clk 0:01:06]} 41. a5 {[%clk 0:00:05]}  Rc8 {[%clk 0:00:59]} 42. Nf5 {[%clk 0:00:05]}  Rc7 {[%clk 0:00:53]} 43. Nd4 {[%clk 0:00:05]}  Ne4 {[%clk 0:00:41]} 44. Rxc6 {[%clk 0:00:06]}  Rxc6 {[%clk 0:00:31]} 45. Nxc6 {[%clk 0:00:07]}  Nxc3 {[%clk 0:00:32]} 46. Nb4 {[%clk 0:00:07]}  Ne2+ {[%clk 0:00:31]} 47. Kf2 {[%clk 0:00:07]}  Nd4 {[%clk 0:00:32]} 48. Nxa6 {[%clk 0:00:08]}  Nb3 {[%clk 0:00:32]} 49. Nc7 {[%clk 0:00:07]}  Nxa5 {[%clk 0:00:32]} 50. Nd5 {[%clk 0:00:08]}  Nc6 {[%clk 0:00:32]} 51. Ne3 {[%clk 0:00:08]}  g6 {[%clk 0:00:32]} 52. Ke2 {[%clk 0:00:08]}  Kg7 {[%clk 0:00:33]} 53. Kf2 {[%clk 0:00:09]}  f5 {[%clk 0:00:33]} 54. Ke2 {[%clk 0:00:10]}  Kf6 {[%clk 0:00:32]} 55. Kf3 {[%clk 0:00:10]}  Nd4+ {[%clk 0:00:33]} 56. Kf2 {[%clk 0:00:10]}  g5 {[%clk 0:00:33]} 57. Nd5+ {[%clk 0:00:11]}  Ke5 {[%clk 0:00:33]} 58. Ne3 {[%clk 0:00:12]}  h5 {[%clk 0:00:32]} 59. Nc4+ {[%clk 0:00:12]}  Kf6 {[%clk 0:00:30]} 60. Nd6 {[%clk 0:00:12]}  f4 {[%clk 0:00:28]} 61. Ne4+ {[%clk 0:00:12]}  Kf5 {[%clk 0:00:29]} 62. Nd6+ {[%clk 0:00:12]}  Kg6 {[%clk 0:00:29]} 63. Ne4 {[%clk 0:00:13]}  Ne6 {[%clk 0:00:26]} 64. g3 {[%clk 0:00:12]}  Kf5 {[%clk 0:00:25]} 65. Nd6+ {[%clk 0:00:11]}  Ke5 {[%clk 0:00:25]} 66. Nf7+ {[%clk 0:00:11]}  Kf6 {[%clk 0:00:26]} 67. Nd6 {[%clk 0:00:11]}  Nd4 {[%clk 0:00:14]} 68. gxf4 {[%clk 0:00:10]}  gxf4 {[%clk 0:00:15]} 69. Ne4+ {[%clk 0:00:09]}  Ke5 {[%clk 0:00:16]} 70. Ng5 {[%clk 0:00:08]}  Kf5 {[%clk 0:00:12]} 71. Nf7 {[%clk 0:00:07]}  Ne6 {[%clk 0:00:11]} 72. Nd6+ {[%clk 0:00:07]}  Ke5 {[%clk 0:00:10]} 73. Nc4+ {[%clk 0:00:07]}  Kf6 {[%clk 0:00:11]} 74. Nd2 {[%clk 0:00:07]}  Ng5 {[%clk 0:00:10]} 75. Kg2 {[%clk 0:00:06]}  Ke5 {[%clk 0:00:10]} 76. Nc4+ {[%clk 0:00:06]}  Kf5 {[%clk 0:00:10]} 77. Nd2 {[%clk 0:00:06]}  Ne4 {[%clk 0:00:10]} 78. Nf3 {[%clk 0:00:06]}  Ng5 {[%clk 0:00:10]} 79. Nh4+ {[%clk 0:00:05]}  Ke4 {[%clk 0:00:10]} 80. Kf2 {[%clk 0:00:06]}  f3 {[%clk 0:00:09]} 81. Ng6 {[%clk 0:00:05]}  Kf5 {[%clk 0:00:09]} 82. Ne7+ {[%clk 0:00:04]}  Kf4 {[%clk 0:00:10]} 83. Nd5+ {[%clk 0:00:04]}  Ke5 {[%clk 0:00:10]} 84. Ne3 {[%clk 0:00:05]}  Ke4 {[%clk 0:00:10]} 85. h4 {[%clk 0:00:05]}  Nf7 {[%clk 0:00:09]} 86. Nc4 {[%clk 0:00:06]}  Kf4 {[%clk 0:00:07]} 87. Nd2 {[%clk 0:00:06]}  Ne5 {[%clk 0:00:07]} 88. Nb3 {[%clk 0:00:06]}  Ng4+ {[%clk 0:00:08]} 89. Kf1 {[%clk 0:00:05]}  Kg3 {[%clk 0:00:09]} 90. Nd4 {[%clk 0:00:05]}  Ne3+ {[%clk 0:00:08]} 91. Ke1 {[%clk 0:00:02]}  f2+ {[%clk 0:00:08]} 92. Kd2 {[%clk 0:00:02]}  f1=Q {[%clk 0:00:09]} 93. Kxe3 {[%clk 0:00:02]}  Qf2+ {[%clk 0:00:10]} 94. Ke4 {[%clk 0:00:02]}  Kxh4 {[%clk 0:00:10]} 95. Nf3+ {[%clk 0:00:02]}  Kg3 {[%clk 0:00:10]} 96. Ne5 {[%clk 0:00:03]}  Qe2+ {[%clk 0:00:10]} 97. Kf5 {[%clk 0:00:03]}  h4 {[%clk 0:00:09]} 98. Ng6 {[%clk 0:00:03]}  Qf2+ {[%clk 0:00:10]} 99. Ke5 {[%clk 0:00:03]}  h3 {[%clk 0:00:11]} 100. Ne7 {[%clk 0:00:03]}  Qe1+ {[%clk 0:00:11]} 101. Kf6 {[%clk 0:00:03]}  Qxe7+ {[%clk 0:00:12]} 102. Kxe7 {[%clk 0:00:04]}  h2 {[%clk 0:00:13]} 0-1


[Site "https://www.chess.com"]

[Event "Titled Tuesday Blitz December 13 Early 2022"]
[White "Aloma Vidal, Robert"]
[Black "Redzisz, Michal"]
[WhiteFideId "2260409"]
[BlackFideId "21816107"]
[WhiteElo "2435"]
[BlackElo "2136"]
[Result "1-0"]
[Round "09"]
[TimeControl "180+1"]
[Date "2022.12.14"]
[WhiteClock "0:00:21"]
[BlackClock "0:00:01"]

1. e4 {[%clk 0:03:00]}  c5 {[%clk 0:02:56]} 2. c3 {[%clk 0:03:01]}  Nf6 {[%clk 0:02:53]} 3. e5 {[%clk 0:03:01]}  Nd5 {[%clk 0:02:53]} 4. Nf3 {[%clk 0:03:02]}  Nc6 {[%clk 0:02:52]} 5. Bc4 {[%clk 0:03:02]}  Nb6 {[%clk 0:02:42]} 6. Bb3 {[%clk 0:03:03]}  d6 {[%clk 0:02:43]} 7. exd6 {[%clk 0:03:03]}  Qxd6 {[%clk 0:02:42]} 8. Na3 {[%clk 0:03:04]}  Bf5 {[%clk 0:02:29]} 9. d4 {[%clk 0:02:56]}  a6 {[%clk 0:01:54]} 10. O-O {[%clk 0:02:46]}  cxd4 {[%clk 0:01:44]} 11. cxd4 {[%clk 0:02:31]}  e6 {[%clk 0:01:42]} 12. Re1 {[%clk 0:02:14]}  Be7 {[%clk 0:01:33]} 13. Nc4 {[%clk 0:01:27]}  Nxc4 {[%clk 0:01:28]} 14. Bxc4 {[%clk 0:01:28]}  O-O {[%clk 0:01:25]} 15. d5 {[%clk 0:01:28]}  Na5 {[%clk 0:01:15]} 16. b3 {[%clk 0:01:23]}  Bf6 {[%clk 0:01:12]} 17. Nd4 {[%clk 0:01:18]}  b5 {[%clk 0:01:08]} 18. Be2 {[%clk 0:00:51]}  Qxd5 {[%clk 0:00:48]} 19. Bb2 {[%clk 0:00:51]}  Rfd8 {[%clk 0:00:24]} 20. Bf3 {[%clk 0:00:42]}  Qd7 {[%clk 0:00:10]} 21. Bxa8 {[%clk 0:00:37]}  Qa7 {[%clk 0:00:08]} 22. Nc6 {[%clk 0:00:27]}  Rxd1 {[%clk 0:00:03]} 23. Nxa7 {[%clk 0:00:26]}  Rxe1+ {[%clk 0:00:03]} 24. Rxe1 {[%clk 0:00:26]}  Bxb2 {[%clk 0:00:04]} 25. Rd1 {[%clk 0:00:23]}  g5 {[%clk 0:00:03]} 26. h3 {[%clk 0:00:22]}  Kg7 {[%clk 0:00:04]} 27. g4 {[%clk 0:00:21]}  Bg6 {[%clk 0:00:03]} 28. Rd6 {[%clk 0:00:21]}  Bc3 {[%clk 0:00:01]} 29. Rxa6 {[%clk 0:00:21]} 1-0


[Site "https://www.chess.com"]

[Event "Titled Tuesday Blitz December 13 Early 2022"]
[White "Ambartsumova, Karina"]
[Black "Shapiro, Daniel"]
[WhiteFideId "4166299"]
[BlackFideId "2001780"]
[WhiteElo "2319"]
[BlackElo "2357"]
[Result "0-1"]
[Round "09"]
[TimeControl "180+1"]
[Date "2022.12.14"]
[WhiteClock "0:00:32"]
[BlackClock "0:00:28"]

1. Nf3 {[%clk 0:03:00]}  Nf6 {[%clk 0:02:59]} 2. g3 {[%clk 0:03:01]}  d5 {[%clk 0:02:59]} 3. Bg2 {[%clk 0:03:01]}  e6 {[%clk 0:02:59]} 4. O-O {[%clk 0:03:01]}  Be7 {[%clk 0:02:59]} 5. c4 {[%clk 0:03:01]}  c6 {[%clk 0:02:57]} 6. b3 {[%clk 0:03:01]}  O-O {[%clk 0:02:56]} 7. Bb2 {[%clk 0:03:01]}  b6 {[%clk 0:02:56]} 8. e3 {[%clk 0:03:01]}  Ba6 {[%clk 0:02:55]} 9. Qe2 {[%clk 0:03:01]}  Nbd7 {[%clk 0:02:47]} 10. d3 {[%clk 0:02:59]}  Bd6 {[%clk 0:02:32]} 11. Nbd2 {[%clk 0:02:39]}  Qe7 {[%clk 0:02:26]} 12. e4 {[%clk 0:02:28]}  dxe4 {[%clk 0:01:58]} 13. dxe4 {[%clk 0:02:27]}  e5 {[%clk 0:01:58]} 14. Rad1 {[%clk 0:02:09]}  Rfe8 {[%clk 0:01:49]} 15. Rfe1 {[%clk 0:01:56]}  Rad8 {[%clk 0:01:35]} 16. Nf1 {[%clk 0:01:53]}  Bb4 {[%clk 0:01:33]} 17. N1d2 {[%clk 0:01:31]}  g6 {[%clk 0:01:24]} 18. Rf1 {[%clk 0:01:26]}  Nh5 {[%clk 0:01:23]} 19. Nb1 {[%clk 0:01:24]}  Bd6 {[%clk 0:01:14]} 20. Nc3 {[%clk 0:01:13]}  Ng7 {[%clk 0:01:08]} 21. Bh3 {[%clk 0:00:57]}  Ne6 {[%clk 0:01:03]} 22. Bxe6 {[%clk 0:00:57]}  Qxe6 {[%clk 0:01:02]} 23. Rd3 {[%clk 0:00:57]}  Nc5 {[%clk 0:00:57]} 24. Rd2 {[%clk 0:00:57]}  Bc8 {[%clk 0:00:38]} 25. Rfd1 {[%clk 0:00:57]}  Bc7 {[%clk 0:00:32]} 26. Rxd8 {[%clk 0:00:53]}  Rxd8 {[%clk 0:00:32]} 27. Rxd8+ {[%clk 0:00:54]}  Bxd8 {[%clk 0:00:33]} 28. Qd2 {[%clk 0:00:53]}  Be7 {[%clk 0:00:33]} 29. Ne1 {[%clk 0:00:40]}  Qh3 {[%clk 0:00:30]} 30. f3 {[%clk 0:00:38]}  Ne6 {[%clk 0:00:29]} 31. Qc2 {[%clk 0:00:32]}  Bc5+ {[%clk 0:00:28]} 0-1


[Site "https://www.chess.com"]